Cogmind - Beta 14 @@@ ROGUE MODE // 2024.08.13 @ 21:28:06 Player: Dadrick Result: Destroyed by S-10 Pest with Light Assault Rifle Performance ------------- Evolutions (1) 500 Regions Visited (4) 800 Robots Destroyed (45) 225 Value Destroyed (1137) 1137 Prototype IDs (1) 20 Alien Tech Used (0) 0 Bonus (99) 99 TOTAL SCORE: 2781 Bonus ------- High Alert Combat Kills 57 Follower Combat Kills 42 Cogmind --------- Core Integrity 0/400 Matter 125/300 Energy 100/100 System Corruption 0% Temperature Cool (0) Movement Core (100) Ox1 Location -9/Storage Parts ------- > --- POWER (1) -------- (None) > --- PROPULSION (2) --- (None) > --- UTILITY (3) ------ Small Storage Unit Visual Processing Unit > --- WEAPON (3) ------- Mini Grenade Launcher > --- INVENTORY (8) ---- Heavy Ion Engine Light Treads Light Treads Heat Sink Medium Matter Pod (74) Signal Interpreter Light Armor Plating Peak State ------------ > --- POWER ------------ Ion Engine > --- PROPULSION ------- Wheel Compact Wheel > --- UTILITY ---------- Small Storage Unit Visual Processing Unit Drone Bay > --- WEAPON ----------- Beam Rifle Improved Medium Laser Assault Rifle > --- INVENTORY -------- Light Ion Engine Light Treads Light Treads Medium Matter Pod Signal Interpreter Improved Terrain Scanner Mini Grenade Launcher [Rating: 18] Favorites ----------- Power Ion Engine Engine Ion Engine Propulsion Wheel Treads Light Treads Wheel Wheel Utility Small Storage Unit Device Improved Terrain Scanner Storage Small Storage Unit Processor Visual Processing Unit Protection Light Armor Plating Weapon Assault Rifle Energy Gun Beam Rifle Ballistic Gun Assault Rifle Launcher Mini Grenade Launcher Build | -11 -10 -10 -9 -9 ------- Run | Yrd Mat Min Mat Sto Slots Evolved 2 | . . . 2 . Power . | . . . . . Propulsion . | . . . . . Utility 1 | . . . 1 . Weapon 1 | . . . 1 . Parts Attached 34 | 8 1 . 2 23 Power 3 | 1 . . . 2 Engine 3 | 1 . . . 2 Core . | . . . . . Reactor . | . . . . . Propulsion 13 | 4 . . . 9 Treads 6 | 2 . . . 4 Leg . | . . . . . Wheel 7 | 2 . . . 5 Hover . | . . . . . Flight . | . . . . . Utility 7 | 1 1 . 1 4 Device 4 | . 1 . . 3 Storage 1 | 1 . . . . Processor 1 | . . . 1 . Hackware . | . . . . . Protection 1 | . . . . 1 Artifact . | . . . . . Weapon 11 | 2 . . 1 8 Energy Gun 4 | . . . . 4 Energy Cannon . | . . . . . Ballistic Gun 4 | 2 . . 1 1 Ballistic Cannon . | . . . . . Launcher 3 | . . . . 3 Special Weapon . | . . . . . Impact Weapon . | . . . . . Slashing Weapon . | . . . . . Piercing Weapon . | . . . . . Special Melee Weapon . | . . . . . Unidentified Prototypes 1 | . . . . 1 Parts Lost 19 | . . . . 19 Power 2 | . . . . 2 Propulsion 8 | . . . . 8 Utility 3 | . . . . 3 Weapon 6 | . . . . 6 Highest Loss Streak 5 | . . . . 5 To Critical Strikes . | . . . . . Average Slot Usage (%) 91 | . 100 100 96 80 Engine 11 | . 14 14 11 8 Treads 2 | . . . . 6 Wheel 19 | . 28 28 22 10 Device 10 | . 14 14 11 6 Storage 12 | . 14 14 11 11 Processor 6 | . . . 9 11 Energy Gun 2 | . . . . 6 Ballistic Gun 22 | . 28 28 31 13 Launcher 2 | . . . . 5 Peak Build Rating 18 | 6 10 10 13 18 Average Rating 10 | 4 9 10 12 11 On Entrance 7 | . 6 10 10 13 Naked Turns . | . . . . . Heaviest Build 24 | 13 14 14 16 24 Greatest Support 40 | 40 26 26 26 40 Greatest Overweight (x) 3 | . . . . 3 Average Overweight (x) . | . . . . . Largest Inventory Capacity 8 | 8 8 8 8 8 Average Capacity 7 | 6 8 8 8 8 Most Carried 8 | 5 8 8 8 8 Average Carried 7 | 2 6 8 7 6 Final Capacity 8 | 8 8 8 8 8 Final Carried 8 | 5 8 8 8 7 Class Distribution -------------------- 58% | Mutant 23% | Skirmisher 15% | Scavenger-Mutant Dominant Class ---------------- Mutant | -10/Materials Mutant | -10/Mines Skirmisher | -9/Materials Scavenger-Mutant | -9/Storage Resources | -11 -10 -10 -9 -9 ----------- Run | Yrd Mat Min Mat Sto Matter Collected 777 | 249 . 73 116 339 Remotely . | . . . . . Salvage Created 1127 | 11 . 56 212 848 Parts 94 | 4 . 11 12 67 Haulers Intercepted . | . . . . . Recyclers Shooed 4 | . . . . 4 Parts Field Recycled . | . . . . . Retrieved Matter . | . . . . . Parts Self-Destructed . | . . . . . Prevented . | . . . . . Kills | -11 -10 -10 -9 -9 ------- Run | Yrd Mat Min Mat Sto Combat Hostiles Destroyed 32 | . . 3 4 25 Guns 14 | . . 3 4 7 AOE 18 | . . . . 18 Classes Destroyed 10 | 1 . 1 3 5 Worker 4 | . . . . 4 Builder 2 | . . . . 2 Tunneler 2 | 1 . 1 . . Recycler 2 | . . . . 2 Mechanic 1 | . . . . 1 Watcher 2 | . . . 1 1 Swarmer 8 | . . 3 . 5 Grunt 15 | . . . 3 12 Brawler 1 | . . . 1 . Sentry 8 | . . . . 8 Best Kill Streak 8 | 1 . 4 2 8 Combat Bots Only 6 | . . 3 2 6 Max Kills in Single Turn 4 | 1 . 2 2 4 Gunslinging 1 | . . . 1 1 Exploded 4 | . . . . 4 Melee . | . . . . . Uniques/NPCs Destroyed . | . . . . . Combat | -11 -10 -10 -9 -9 -------- Run | Yrd Mat Min Mat Sto Hostile Shots Fired 192 | . . 9 12 171 Missed 57 | . . 2 5 50 Damage Taken 1892 | . . 60 84 1748 Core 428 | . . 23 10 395 Absorbed by Shields . | . . . . . Core Remaining (%) 95 | 100 . 90 . . Volleys Fired 78 | 2 2 4 10 60 Largest 3 | 2 2 2 3 3 Hottest 132 | 40 40 40 60 132 Shots Fired 128 | 4 4 8 30 82 Gun 100 | 4 4 8 30 54 Cannon . | . . . . . Launcher 28 | . . . . 28 Special . | . . . . . Kinetic 79 | 4 4 8 30 33 Thermal 21 | . . . . 21 Explosive 28 | . . . . 28 Electromagnetic . | . . . . . Robot Hit Streak 23 | 2 1 3 23 7 Robot Miss Streak 5 | 1 1 2 5 3 Penetration Max . | . . . . . Secondary Targets 2 | . . . 1 1 Max Gunslinging Chain 1 | . . . 1 1 Shots Hit Robots 78 | 2 2 3 21 50 Core Hits 78 | 1 . 4 11 62 Critical Kills . | . . . . . Critical Parts Destroyed 1 | . . . 1 . Critical Strikes 2 | . . . 1 1 Burn 1 | . . . . 1 Destroy 1 | . . . 1 . Melee Attacks . | . . . . . Impact . | . . . . . Slashing . | . . . . . Piercing . | . . . . . Sneak Attacks . | . . . . . Combat Hostiles . | . . . . . Follow-up Attacks . | . . . . . Damage Inflicted 2745 | 18 14 43 240 2430 Guns 785 | 18 14 43 240 470 Cannons . | . . . . . Explosions 1945 | . . . . 1945 Melee . | . . . . . Ramming 15 | . . . . 15 Kinetic 528 | 18 14 43 240 213 Thermal 257 | . . . . 257 Explosive 1945 | . . . . 1945 Electromagnetic . | . . . . . Impact . | . . . . . Slashing . | . . . . . Piercing . | . . . . . Highest Corruption . | . . . . . Average Corruption . | . . . . . Corruption Purged . | . . . . . Corruption Blocked . | . . . . . Overload Shots . | . . . . . Overflow Damage 17 | . . . . 17 Projectiles . | . . . . . Explosions 17 | . . . . 17 Melee . | . . . . . Knockbacks . | . . . . . Impact . | . . . . . Kinetic . | . . . . . Secondary . | . . . . . Self-Inflicted Damage 109 | . . . . 109 Shots 4 | . . . . 4 Rammed 3 | . . . . 3 Targets Rammed 3 | . . . . 3 Kicked . | . . . . . Crushed . | . . . . . Highest Temperature 329 | . . . 6 329 Average Temperature 76 | . . . 3 81 Received Heat Transfer 753 | . . . 36 717 Siege Activations . | . . . . . Robots Corrupted . | . . . . . Combat Hostiles . | . . . . . Parts Fried . | . . . . . Impact Corruptions . | . . . . . Robots Melted . | . . . . . Combat Hostiles . | . . . . . Parts Melted 1 | . . . . 1 Heat Transferred 691 | . . . . 691 Parts Sabotaged . | . . . . . Parts Stolen . | . . . . . Parts Stripped . | . . . . . Power Chain Reactions . | . . . . . Alert | -11 -10 -10 -9 -9 ------- Run | Yrd Mat Min Mat Sto Peak Influence 597 | 5 18 173 194 597 Initial 81 | . 3 6 37 81 Average 153 | . 12 111 91 245 Maximum Alert Level 2 | . . . . 2 Low Security (%) 73 | 100 100 100 100 35 Level 1 20 | . . . . 51 Level 2 5 | . . . . 13 Level 3 . | . . . . . Level 4 . | . . . . . Level 5 . | . . . . . High Security . | . . . . . Max Security . | . . . . . Squads Dispatched 6 | . . . 1 5 Investigation 1 | . . . . 1 Extermination . | . . . . . Reinforcement 2 | . . . 1 1 Assault . | . . . . . Garrison 3 | . . . . 3 Intercept . | . . . . . Searches Triggered . | . . . . . Construction Impeded . | . . . . . Haulers Reinforced . | . . . . . Active Scanning Responses . | . . . . . Cargo Convoy Interrupts . | . . . . . Stealth | -11 -10 -10 -9 -9 --------- Run | Yrd Mat Min Mat Sto Distress Signals 2 | . . . 2 . Communications Jammed . | . . . . . Distress Signals . | . . . . . Times Spotted 53 | . 1 7 7 38 Peak Tracking Total 9 | . 1 3 5 9 Tactical Retreats 5 | . . 1 . 4 Traps | -11 -10 -10 -9 -9 ------- Run | Yrd Mat Min Mat Sto Traps Triggered 2 | . . . . 2 Indirectly . | . . . . . Trap Hack Attempts . | . . . . . Triggered . | . . . . . Disarmed . | . . . . . Reprogrammed . | . . . . . Reused . | . . . . . Traps Extracted . | . . . . . Installed . | . . . . . Triggered . | . . . . . Machines | -11 -10 -10 -9 -9 ---------- Run | Yrd Mat Min Mat Sto Machines Disabled 4 | . . . . 4 Max in Single Turn 2 | . . . . 2 Machines Repaired . | . . . . . Machines Dismantled . | . . . . . Machines Sabotaged . | . . . . . Overloaded Fab Kills . | . . . . . Hacking | -11 -10 -10 -9 -9 --------- Run | Yrd Mat Min Mat Sto Machines Accessed 5 | . . . 2 3 Terminals 5 | . . . 2 3 Fabricators . | . . . . . Repair Stations . | . . . . . Recycling Units . | . . . . . Scanalyzers . | . . . . . Garrison Access . | . . . . . Total Hacks 12 | . . . 7 5 Successful 6 | . . . 1 5 Failed 6 | . . . 6 . Catastrophic 1 | . . . 1 . Database Lockouts . | . . . . . Manual 9 | . . . 7 2 Terminals 12 | . . . 7 5 Fabricators . | . . . . . Repair Stations . | . . . . . Recycling Units . | . . . . . Scanalyzers . | . . . . . Garrison Access . | . . . . . Terminal Hacks 4 | . . . . 4 Open Door 2 | . . . . 2 Unreport Threat 1 | . . . . 1 Zone Layout 1 | . . . . 1 Fabricator Hacks . | . . . . . Repair Station Hacks . | . . . . . Recycling Unit Hacks . | . . . . . Scanalyzer . | . . . . . Garrison Access Hacks . | . . . . . Unauthorized Hacks 2 | . . . 1 1 Terminals 2 | . . . 1 1 Botnet 2 | . . . 1 1 Fabricators . | . . . . . Repair Stations . | . . . . . Recycling Units . | . . . . . Scanalyzers . | . . . . . Garrison Access . | . . . . . Data Cores Recovered . | . . . . . Used . | . . . . . Hacking Detections 3 | . . . 2 1 Full Trace Events . | . . . . . Feedback Events . | . . . . . Feedback Blocked . | . . . . . Robot Schematics Acquired . | . . . . . Robots Built . | . . . . . Authchips . | . . . . . Time . | . . . . . Total Robot Build Rating . | . . . . . Part Schematics Acquired . | . . . . . Parts Built . | . . . . . Authchips . | . . . . . Time . | . . . . . Total Part Build Rating . | . . . . . Parts Repaired . | . . . . . Time . | . . . . . Parts Recycled . | . . . . . Recycled Matter . | . . . . . Retrieved Matter . | . . . . . Retrieved Components . | . . . . . Parts Scanalyzed . | . . . . . Part Schematics Acquired . | . . . . . Parts Damaged . | . . . . . Bothacking | -11 -10 -10 -9 -9 ------------ Run | Yrd Mat Min Mat Sto Used RIF Installer . | . . . . . Robots Hacked . | . . . . . Non-combat . | . . . . . Combat . | . . . . . Robot Hacks Applied . | . . . . . Relay Couplers Released . | . . . . . Fabnet Peak Effective % . | . . . . . Robots Rewired . | . . . . . Allies Hacked . | . . . . . Hacks Repelled . | . . . . . Allies | -11 -10 -10 -9 -9 -------- Run | Yrd Mat Min Mat Sto Total Allies 3 | . . 3 . . Largest Group 3 | . . 3 . . Highest-Rated Group 40 | . . 40 . . Highest-Rated Ally 16 | . . 16 . . Total Orders 1 | . . . . 1 EXPLORE 1 | . . . . 1 Ally Attacks 12 | . . 12 . . Total Damage 144 | . . 144 . . Kills 6 | . . 6 . . Allies Corrupted . | . . . . . Allies Melted . | . . . . . Intel | -11 -10 -10 -9 -9 ------- Run | Yrd Mat Min Mat Sto Robot Analysis Total . | . . . . . Derelict Logs Recovered 1 | . . 1 . . Drone Launches 1 | . . . . 1 Drone Recoveries 1 | . . . . 1 Exploration | -11 -10 -10 -9 -9 ------------- Run | Yrd Mat Min Mat Sto Turns Passed 1465 | 77 62 538 191 597 Spaces Moved 949 | 47 57 357 135 353 Core 23 | 2 . . . 21 Treads 54 | 19 . . . 35 Legs . | . . . . . Wheels 872 | 26 57 357 135 297 Hover . | . . . . . Flight . | . . . . . Fastest Speed 50 | 50 90 90 90 80 Average Speed 95 | 116 90 90 90 100 Slowest Speed 200 | 160 90 90 90 200 Overloaded Moves . | . . . . . Propulsion Burnouts . | . . . . . Robots Hopped . | . . . . . Cave-ins Triggered . | . . . . . Exploration Rate (%) 30 | 4 14 63 15 58 Regions Visited 4 Branch Regions 2 Pre-discovered Areas 1 | . . 1 . . Known Exits Taken . | . . . . . Unknown Exits Taken 4 | 1 1 1 1 . Scrap Searched . | . . . . . Spaces Dug . | . . . . . Terrain Destroyed 135 | . . . . 135 Melee . | . . . . . Projectile . | . . . . . AOE 135 | . . . . 135 Terrain Rammed . | . . . . . Walls Destroyed . | . . . . . Machines Disabled . | . . . . . Actions | -11 -10 -10 -9 -9 --------- Run | Yrd Mat Min Mat Sto Total 1394 | 61 63 566 183 521 Wait 311 | . . 206 36 69 Move 945 | 46 56 356 134 353 Hop . | . . . . . Pick Up 18 | 5 4 . 1 8 Fast Attach 17 | 6 . . 1 10 Attach 12 | . 1 . 1 10 Detach 2 | . . . . 2 Swap 5 | 2 . . . 3 Drop 3 | . . . . 3 Fire 78 | 2 2 4 10 60 Melee . | . . . . . Ram 3 | . . . . 3 Kick . | . . . . . Crush . | . . . . . Escape Stasis . | . . . . . Rewire . | . . . . . Trap . | . . . . . Miscellaneous . | . . . . . Route ------- -11/Scrapyard -10/Materials -10/Mines (discovered 2 exits: *Mat x2) -9/Materials -9/Storage History --------- Turn | Location | Event 6 | -11/Scrapyard | Discovered new exit (range 15) 78 | -11/Scrapyard | Entered Materials 125 | -10/Materials | Discovered new exit (range 12) 140 | -10/Materials | Entered Mines 143 | -10/Mines | Assisted by bots powering up and referring to "LRC-V3" 308 | -10/Mines | Build established: Mutant 333 | -10/Mines | Discovered new exit (range 3) 568 | -10/Mines | Discovered new exit (range 9) 678 | -10/Mines | Entered Materials 678 | -9/Materials | Evolved 2 slots: Utility x1, Weapon x1 771 | -9/Materials | Discovered new exit (range 6) 869 | -9/Materials | Entered Storage 1002 | -9/Storage | Garrison activated, responded to threat 1055 | -9/Storage | Lost 3 parts (1p1n1u) 1121 | -9/Storage | Lost 3 parts (1n2w) 1324 | -9/Storage | Core integrity fell below 50% 1372 | -9/Storage | Lost 5 parts (1p3n1u) 1425 | -9/Storage | Core integrity fell below 20% 1458 | -9/Storage | Lost 4 parts (1n1u2w) 1466 | -9/Storage | Destroyed by S-10 Pest with Light Assault Rifle Last Messages --------------- 01447_ Acquired Lgt. Armor Plating. 01449_ The unstable cave ceiling collapses. 01450_ Acquired 12 matter. 01452_ The unstable cave ceiling collapses. 01452_ Acquired Wheel. 01454_ The unstable cave ceiling collapses. 01456_ K-01 Serf collects debris. 01457_ The unstable cave ceiling collapses. 01457_ C-30 ARC bursts open, deploying its payload. 01457_ S-10 Pest unfolds itself. 01459_ Mni. Grenade Launcher destroyed. 01460_ Wheel destroyed. 01461_ S-10 Pest destroyed. 01461_ Y-45 Defender destroyed. 01461_ S-10 Pest destroyed. 01462_ The unstable cave ceiling collapses. 01463_ G-34 Mercenary destroyed. 01464_ The unstable cave ceiling collapses. 01465_ Destroyed Lgt. Ion Engine. 01465_ Transfer Shaft disabled. Map ----- +----------------------------------------------------+ | """"" # # ###########?#??#??####?? | | " # """ # #??????????#?#?????""#?# | | # ### # """ # #??#??????????????"Y"# # | | # # """ # #????#?#???#?????? # | | # + # ##?????#????????? # | | # # """ ##??????#######? # | | "![ # # """ # ######## # " " # | | "" + # """ != # """ # | | """" # # = ! + """ # | | "!]! # # " "## [ # # | | """" # ##"G"### ######## # """ # | | # ##"""#?# #?######## ###? """ # | | ####/# # ######?##### #?# # ###? """ # | | ?### ##########???????#* *#?# / +?? # | | ???# #??# ???????#***#?# " " # #??+##### | | ##?# #??# """ [??????#####?# "R" # ### #???? | | #### ####! """ ?#??????????# """ ?# #???? | | # """ ###?????????# ?####+####???? | | #? ##??######## ##????? ???#??? | | ##+# ## # ###"""""#?##??????? ?????? | | # ## ##""T""######???? """ ????? | | # # #????? """ "???? | | """ """ """ ####? """ ##??? | | """ # """ "" #?# !#???? | | """ # """ " s #?########???? | | # # # @ #????????????? | | # # r #????????????? | | ###"T"## # =% #????????????? | | ??###### ## ## ## # #????????????? | | ???????# #### ### [##??# ? #???????????? | | ???????# #??######? =%% =???? ????????????? | | ????????# #???????? *=! % ???? +? ?????????? | | ????????? #???????## %%[ ####?????#???????????? | | ????????? #????????# a ##????????????????????? | | ????????? #???????? Y??????????????????????? | | ?????????? #??????? ??????????????????????? | | ?????????? #??????? ??????????????????????? | | ?????????? ???????# ??????????????????????? | | ?????????? ???????# """ "??????????????????????? | | ?????????? ???????# """ "??????????????????????? | | ??????????????????#???" ???????????????????????? | | ??????????????????????? ???????????????????????? | | ???????????????????????#???????????????????????? | | ???????????????????????????????????????????????? | | ???????????????????????????????????????????????? | | ???????????????????????????????????????????????? | | ???????????????????????????????????????????????? | | ???????????????????????????????????????????????? | | ???????????????????????????????????????????????? | | ???????????????????????????????????????????????? | +----------------------------------------------------+ Best States ------------- Heat Dissipation 28 Energy Generation 10 Energy Capacity 250 Matter Stores 300 Matter Capacity 300 Sight Range 18 Terrain Scan Range 16 Terrain Scan Density 10 Armor Coverage 150 Evasion (%) 44 Recoil Reduction 2 Item Schematics ----------------- None Robot Schematics ------------------ None Fabricated ------------ Nothing Alien Tech Used ----------------- None Achievements -------------- None Challenges ------------ None Game ------ Seed SubatomicExpertLog Manual? 0 Play Time 00:19:41 Cumulative 66.9 hours Start 2024.08.13 @ 21:11:21 End 2024.08.13 @ 21:28:06 Sessions 1 Manual Loads 0 Difficulty Rogue Special Mode None Game No. 58 Rogue 37 Adventurer 21 Explorer 0 Win Type - Total 1 Types 1/0/0/0/0/0/0/0/0 Lore% 15 Gallery% 45 Achievement% 40 Wizard Run 0 Options --------- Layout 1 ASCII 0 Keyboard 0 Movement Mouse Keybinds 0 Fullscreen 2 Font 32/SmallcapsGlow Map View 77x35 Zoom Use 0% Tactical HUD 1 Map Filters NONE Filters NONE Steam 1 RUN: c43c8dde-adca-4737-8d8d-54c4b996c8f9